bitfinex/quotes_ETHUSD_20250822
["timestamp","ask_amount","ask_price","bid_price","bid_amount"]
[1755827240650,7.07327988,4270.2,4269.7,3.093877]
[1755827240851,1.802,4271.1,4269.7,3.093877]
[1755827241055,7.07327988,4270.3,4269.7,5.43596192]
[1755827241253,7.07327988,4270.3,4269.7,0.093877]
[1755827241439,7.07327988,4270.3,4269.7,2.43596192]
[1755827241837,1.802,4271.1,4269.7,2.43596192]
[1755827241838,7.07327988,4270.0,4269.7,0.093877]
[1755827242277,8.87527988,4270.3,4269.7,0.093877]
[1755827242581,7.07327988,4270.0,4269.7,0.093877]
[1755827244276,7.09527988,4269.8,4269.7,0.093877]
[1755827244976,0.022,4269.8,4269.7,0.093877]
[1755827245148,0.022,4269.8,4269.7,2.43596192]
[1755827246277,0.022,4269.8,4269.7,0.093877]
[1755827247150,0.022,4269.8,4269.7,2.43596192]
[1755827247349,7.09527988,4269.8,4269.7,0.093877]
[1755827247777,7.09527988,4269.8,4269.7,2.43596192]
[1755827247975,7.09527988,4269.8,4269.7,0.093877]
[1755827248786,7.09527988,4269.8,4268.3,0.001]
[1755827248971,7.07327988,4268.4,4268.3,0.001]
[1755827249283,12.83627988,4268.4,4268.3,0.001]
[1755827249493,12.83627988,4268.4,4267.5,0.001]
[1755827249649,7.07327988,4267.9,4267.5,0.001]
[1755827249855,7.07327988,4267.9,4267.7,0.093973]
[1755827250057,11.03727988,4267.9,4267.7,0.093973]
[1755827250288,18.82783957,4267.9,4267.7,0.093973]
[1755827250459,3.964,4267.9,4267.7,0.093973]
[1755827250881,14.86383957,4268.3,4267.7,0.093973]
[1755827251060,3.965,4268.2,4267.7,0.093973]
[1755827251582,14.86383957,4267.9,4267.7,0.093973]
[1755827255182,18.83083957,4267.9,4267.5,0.001]
[1755827255699,18.83083957,4267.9,4267.5,0.094978]
[1755827257869,14.86383957,4267.9,4267.5,0.094978]
[1755827258068,18.82883957,4267.9,4267.5,0.094978]
[1755827258271,3.965,4267.9,4267.5,0.560678]
[1755827258994,14.86383957,4268.3,4267.5,0.560678]
[1755827259197,3.967,4268.2,4267.8,0.7754]
[1755827259491,1.802,4268.4,4268.1,2.34296233]
[1755827259659,14.86383957,4269.1,4268.2,2.34290801]
[1755827259660,3.966,4268.3,4268.2,2.34290801]
[1755827259863,1.802,4269.0,4268.2,2.34290801]
[1755827259864,3.973,4268.4,4268.2,0.7544]
[1755827260064,3.973,4268.4,4268.3,0.4657]
[1755827260290,3.973,4268.4,4268.3,0.7544]
[1755827260494,3.973,4268.4,4268.3,3.09725312]
[1755827261091,1.802,4269.0,4268.4,2.3427703]
[1755827261296,3.972,4268.9,4268.3,5.8085381]
[1755827261664,3.972,4268.9,4268.3,3.4657]
[1755827262165,3.972,4268.9,4268.3,5.80853142]
[1755827262597,3.972,4268.9,4268.3,3.4657]
[1755827263476,3.972,4268.9,4268.4,0.704505]
[1755827263881,3.972,4268.9,4268.5,0.4657]
[1755827264093,3.972,4268.9,4268.4,0.704505]
[1755827264289,1.802,4269.0,4268.8,0.2887]
[1755827264593,5.771,4269.0,4268.9,2.80822383]
[1755827264798,5.771,4269.0,4268.9,3.09692383]
[1755827264996,0.002,4269.2,4269.1,2.34241409]
[1755827265198,0.002,4269.2,4269.1,2.63111409]
[1755827265373,0.002,4269.2,4269.1,0.7544]
[1755827265570,0.002,4269.2,4269.1,3.09681409]
[1755827265792,0.002,4269.2,4269.1,6.09681409]
[1755827267199,0.002,4269.2,4269.1,6.94074732]
[1755827267571,0.002,4269.2,4269.1,7.60074732]
[1755827270286,0.002,4269.2,4269.1,7.87050498]
[1755827278385,0.002,4269.2,4269.1,14.93910803]
[1755827279416,0.002,4269.2,4269.1,7.87050498]
[1755827283819,0.002,4269.2,4269.1,6.27217175]
[1755827284120,0.002,4269.2,4269.1,0.26975766]
[1755827284918,0.002,4269.2,4269.1,2.61217175]
[1755827286031,0.002,4269.2,4269.1,0.26975766]
[1755827287393,0.002,4269.2,4269.1,2.61217175]
[1755827287610,0.002,4269.2,4269.1,0.26975766]
[1755827288814,0.002,4269.2,4269.1,2.61217175]
[1755827289609,0.002,4269.2,4269.1,2.92267175]
[1755827289909,0.002,4269.2,4269.1,2.61217175]
[1755827290226,0.002,4269.2,4269.1,2.92267175]
[1755827290402,0.002,4269.2,4269.1,4.86968848]
[1755827291012,0.002,4269.2,4269.1,3.27217175]
[1755827291612,0.002,4269.2,4269.1,4.04317175]
[1755827292840,0.002,4269.2,4269.1,0.26975766]
[1755827293147,0.002,4269.2,4269.1,5.61217175]
[1755827297756,0.002,4269.2,4269.1,6.38317175]
[1755827298154,0.002,4269.2,4269.1,6.07267175]
[1755827299156,0.002,4269.2,4269.1,5.61217175]
[1755827299866,0.002,4269.2,4269.1,6.07267175]
[1755827300865,0.002,4269.2,4269.1,5.61217175]
[1755827301525,0.002,4269.2,4269.1,3.26975766]
[1755827302164,0.002,4269.2,4269.1,5.61217175]
[1755827302542,0.002,4269.2,4269.1,6.38317175]
[1755827302937,0.002,4269.2,4269.1,5.61217175]
[1755827304461,0.002,4269.2,4269.1,3.26975766]
[1755827304832,0.002,4269.2,4269.1,5.61217175]
[1755827305255,0.002,4269.2,4269.1,3.26975766]
[1755827305656,0.002,4269.2,4269.1,5.61217175]
[1755827305844,0.002,4269.2,4269.1,6.38317175]
[1755827306869,0.002,4269.2,4269.1,5.61217175]
[1755827307029,0.002,4269.2,4269.1,6.38317175]
[1755827310577,0.002,4269.2,4269.1,8.14411832]
[1755827313373,0.002,4269.2,4269.1,12.10511832]
[1755827314171,0.00042513,4269.2,4269.1,8.14411832]
[1755827315643,0.00042513,4269.2,4269.1,12.10511832]
[1755827320561,0.00042513,4269.2,4269.1,12.10411832]
[1755827329621,0.00042513,4269.2,4269.1,19.17172137]
[1755827330619,0.00042513,4269.2,4269.1,11.33211832]
[1755827330830,0.00042513,4269.2,4269.1,10.23117175]
[1755827331021,0.00042513,4269.2,4269.1,6.27217175]
[1755827331324,0.00042513,4269.2,4269.1,0.093901]
[1755827331708,7.06902818,4269.2,4269.1,0.093901]
[1755827332524,7.06902818,4269.2,4268.3,0.001]
[1755827332722,0.00042513,4269.2,4268.8,0.171605]
[1755827333792,7.06860305,4268.9,4268.8,0.171605]
[1755827336129,11.02760305,4268.9,4268.8,0.171605]
[1755827336296,0.00042513,4269.2,4268.8,0.171605]
[1755827336501,3.959,4268.9,4268.8,0.171605]
[1755827338029,3.959,4269.0,4268.8,0.171605]
[1755827338814,0.00042513,4269.2,4268.8,0.171605]
[1755827339014,3.96,4269.1,4268.8,2.51417165]
[1755827339531,3.96,4269.1,4268.8,0.171605]
[1755827341098,7.06860305,4269.0,4268.8,0.171605]
[1755827341930,3.959,4268.9,4268.8,0.171605]
[1755827342132,0.00042513,4269.2,4268.8,0.171605]
[1755827342429,3.95942513,4269.2,4268.8,0.171605]
[1755827343318,3.95942513,4269.2,4269.1,2.34241409]
[1755827343520,3.95942513,4269.2,4269.0,2.34246196]
[1755827343717,3.95942513,4269.2,4268.9,2.78420528]
[1755827343917,0.00042513,4269.2,4269.1,3.08901409]
[1755827344098,0.00042513,4269.2,4269.1,3.79343409]
[1755827344499,0.00042513,4269.2,4269.1,6.79343409]
[1755827344903,0.00042513,4269.2,4269.1,8.36702803]
[1755827350537,0.00042513,4269.2,4269.1,12.32602803]
[1755827359752,0.00042513,4269.2,4269.1,8.36702803]
[1755827359951,0.00042513,4269.2,4269.1,19.39363108]
[1755827360929,0.00042513,4269.2,4269.1,32.60858808]
[1755827361152,0.002,4269.7,4269.6,6.00213977]
[1755827361355,0.002,4269.7,4269.6,11.07997498]
[1755827361655,0.002,4269.7,4269.6,11.54257498]
[1755827361833,0.002,4269.7,4269.6,18.61117803]
[1755827363026,0.002,4269.7,4269.6,18.61017803]
[1755827363454,0.002,4269.7,4269.6,18.70406403]
[1755827364256,0.002,4269.7,4269.6,14.74706403]
[1755827364457,0.002,4269.7,4269.6,18.70406403]
[1755827366764,0.002,4269.7,4269.6,10.88746098]
[1755827367065,0.002,4269.7,4269.6,10.05302577]
[1755827368468,0.002,4269.7,4269.6,3.093886]
[1755827369076,0.002,4269.7,4269.6,0.093886]
[1755827375587,0.002,4269.7,4269.6,2.43602577]
[1755827375796,0.002,4269.7,4269.6,0.093886]
[1755827376747,0.002,4269.7,4269.6,2.43602577]
[1755827376948,0.002,4269.7,4269.6,0.093886]
[1755827380078,0.002,4269.7,4269.6,2.43602577]
[1755827380396,0.002,4269.7,4269.6,0.093886]
[1755827389798,0.002,4269.7,4269.6,2.43602577]
[1755827390100,0.002,4269.7,4269.6,0.093886]
[1755827390670,0.002,4269.7,4269.6,2.43602577]
[1755827391494,0.002,4269.7,4269.6,7.43010835]
[1755827392607,3.957,4269.7,4269.6,3.093886]
[1755827392972,3.957,4269.7,4269.6,0.093886]
[1755827398289,3.957,4269.7,4269.1,0.001]
[1755827398290,3.0,4269.6,4269.1,0.001]
[1755827398508,7.06860305,4269.2,4269.1,0.001]
[1755827398822,11.02360305,4269.2,4269.1,0.001]
[1755827398993,11.02360305,4269.2,4269.1,0.3]
[1755827398994,3.955,4269.2,4269.1,0.3]
[1755827399304,3.955,4269.2,4269.1,0.840733]
[1755827399708,3.955,4269.2,4269.1,0.094933]
[1755827403482,11.02360305,4269.2,4269.1,0.094933]
[1755827405978,11.02360305,4269.2,4269.1,0.541733]
[1755827406409,11.02360305,4269.2,4269.1,0.840733]
[1755827407885,3.955,4269.2,4269.1,0.840733]
[1755827408581,7.06860305,4269.4,4269.1,0.840733]
[1755827408794,3.955,4269.3,4269.1,0.840733]
[1755827409003,3.955,4269.3,4269.2,0.4546]
[1755827409224,7.06860305,4269.4,4269.2,1.455116]
[1755827409433,3.955,4269.3,4269.2,1.455116]
[1755827409633,3.955,4269.3,4269.2,1.000516]
[1755827409940,7.06860305,4269.4,4269.2,1.000516]
[1755827410098,3.955,4269.3,4269.2,1.000516]
[1755827410303,3.955,4269.3,4269.2,1.455116]
[1755827411130,11.02360305,4269.3,4269.2,0.704516]
[1755827412303,33.66,4269.2,4268.3,0.001]
[1755827412548,3.0,4268.2,4267.8,0.725516]
[1755827412716,7.06860305,4267.9,4267.8,0.021]
[1755827412921,12.82560305,4267.9,4267.8,0.021]
[1755827413107,12.93999749,4267.9,4267.8,0.021]
[1755827413603,12.82560305,4267.9,4267.8,0.021]
[1755827414403,13.48560305,4267.9,4267.8,0.021]
[1755827414604,0.66,4267.8,4267.3,0.001]
[1755827414845,7.06860305,4267.6,4267.3,0.001]
[1755827416352,11.02360305,4267.6,4267.5,0.7516]
[1755827416652,7.06860305,4267.6,4267.5,0.7516]
[1755827416807,11.02360305,4267.6,4267.5,0.7516]
[1755827417156,3.955,4267.6,4267.5,0.297]
[1755827417327,11.02360305,4267.6,4267.5,0.7516]
[1755827417527,11.02360305,4267.6,4267.5,0.001]
[1755827419366,7.06860305,4267.6,4267.5,0.7516]
[1755827419562,11.02360305,4267.6,4267.5,0.7516]
[1755827420466,7.06860305,4268.3,4267.5,0.7516]
[1755827420639,5.758,4268.2,4267.6,0.4546]
[1755827421156,5.758,4268.2,4268.1,0.296]
[1755827421341,5.758,4268.2,4268.1,0.7506]
[1755827422519,5.758,4268.2,4267.6,0.4546]
[1755827422724,7.06860305,4267.8,4267.6,0.4546]
[1755827422946,7.06860305,4267.8,4267.7,0.296]
[1755827423123,3.956,4267.8,4267.7,0.7506]
[1755827424446,1.803,4268.2,4267.7,0.7506]
[1755827424646,3.956,4268.1,4267.8,2.34307632]
[1755827424957,3.956,4268.1,4267.6,2.34322107]
[1755827424958,3.956,4268.1,4268.0,0.296]
[1755827425126,1.803,4268.2,4268.1,2.34296291]
[1755827425332,5.759,4268.2,4268.1,3.09356291]
[1755827425637,7.08860305,4268.8,4268.1,3.09356291]
[1755827425638,0.02,4268.8,4268.1,0.7506]
[1755827425854,3.956,4268.7,4268.4,2.34279304]
[1755827426052,3.956,4268.7,4268.6,0.296]
[1755827426427,3.956,4268.7,4268.6,0.7506]
[1755827427156,3.956,4268.7,4268.6,3.09328846]
[1755827427349,3.956,4268.7,4268.6,0.7506]
[1755827427559,3.956,4268.7,4268.6,3.09328846]
[1755827428747,0.02,4268.8,4268.7,2.34263358]
[1755827428934,3.976,4268.8,4268.7,6.09323358]
[1755827431660,3.976,4268.8,4268.7,3.7506]
[1755827431861,3.976,4268.8,4268.7,6.09323358]
[1755827432164,3.976,4268.8,4268.7,6.79766658]
[1755827432463,3.976,4268.8,4268.7,4.455033]
[1755827432861,3.976,4268.8,4268.7,3.7506]
[1755827433263,3.976,4268.8,4268.7,6.09323358]
[1755827433569,3.976,4268.8,4268.7,3.7506]
[1755827436270,0.02,4268.8,4268.7,6.09323358]
[1755827436566,3.975,4268.8,4268.7,6.09323358]
[1755827437966,3.975,4268.8,4268.7,3.7506]
[1755827438741,3.975,4268.8,4268.7,6.09323358]
[1755827440260,0.02,4268.8,4268.7,6.09323358]
[1755827441472,7.08860305,4268.8,4267.7,0.4376]
[1755827441649,7.06860305,4268.7,4267.7,2.78077081]
[1755827441977,3.955,4268.6,4267.7,1.142201]
[1755827442282,3.955,4268.6,4267.9,2.3430704]
[1755827442656,3.955,4268.6,4267.9,0.4376]
[1755827443569,3.955,4268.6,4267.6,5.34322241]
[1755827443774,3.955,4268.6,4267.8,0.001]
[1755827444550,3.955,4268.6,4267.9,2.3430706]
[1755827445492,0.022,4268.8,4268.5,0.2877]
[1755827445690,0.022,4268.8,4268.6,2.34268696]
[1755827445996,0.022,4268.8,4268.7,0.2877]
[1755827446148,0.022,4268.8,4268.7,0.7253]
[1755827446350,0.022,4268.8,4268.7,3.06793358]
[1755827446782,0.022,4268.8,4268.7,0.7253]
[1755827449566,0.022,4268.8,4268.7,3.06793358]
[1755827449753,0.022,4268.8,4268.7,6.60899973]
[1755827449956,0.022,4268.8,4268.7,7.97339173]
[1755827453090,0.022,4268.8,4268.7,11.92839173]
[1755827453798,0.022,4268.8,4268.7,11.92739173]
[1755827454477,0.022,4268.8,4268.7,11.38632558]
[1755827454993,0.022,4268.8,4268.7,10.00102558]
[1755827455374,0.022,4268.8,4268.7,10.28872558]
[1755827455571,0.022,4268.8,4268.7,10.72632558]
[1755827457184,0.022,4268.8,4268.7,11.38632558]
[1755827457383,0.022,4268.8,4268.7,13.466089]
[1755827458778,0.022,4268.8,4268.7,16.58069205]
[1755827459291,0.022,4268.8,4268.7,20.53469205]
[1755827459596,0.022,4268.8,4268.7,16.58069205]
[1755827459800,0.022,4268.8,4268.7,17.79492863]
[1755827459999,0.022,4268.8,4268.7,18.45492863]
[1755827460327,0.022,4268.8,4268.7,3.704392]
[1755827460471,0.022,4268.8,4267.6,7.06860305]
[1755827460790,0.022,4268.8,4268.1,0.093941]
[1755827461111,7.06860305,4268.4,4268.1,0.093941]
[1755827461401,7.06860305,4268.4,4267.5,0.17281431]
[1755827461792,7.06860305,4268.4,4267.5,3.001]
[1755827462805,7.06860305,4268.4,4267.5,0.001]
[1755827463512,7.06860305,4268.1,4267.5,0.001]
[1755827464271,3.954,4268.0,4267.5,0.001]
[1755827468414,3.66,4267.9,4267.5,0.001]
[1755827469914,33.66,4267.9,4267.5,0.001]
[1755827470697,34.16359987,4267.9,4267.5,0.001]
[1755827471211,33.66,4267.9,4267.5,0.001]
[1755827474096,33.0,4267.9,4267.5,0.001]
[1755827474497,17.86067113,4267.9,4267.5,0.001]
[1755827474698,3.955,4267.9,4267.5,0.001]
[1755827481008,3.955,4267.9,4267.5,0.4348]
[1755827481536,3.955,4267.9,4267.7,0.093976]
[1755827482209,3.955,4267.9,4267.8,0.3118]
[1755827482408,3.955,4267.9,4267.8,0.001]
[1755827484437,11.03447923,4267.9,4267.8,0.001]
[1755827485742,14.69447923,4267.9,4267.8,0.001]
[1755827486313,45.19800646,4267.9,4267.8,0.001]
[1755827487143,52.18800646,4267.9,4267.5,0.001]
[1755827487444,7.73947923,4267.6,4267.5,0.001]
[1755827487651,42.19900646,4267.6,4267.5,0.001]
[1755827488365,57.07143471,4267.6,4267.5,0.001]
[1755827488711,3.66,4267.5,4266.8,0.02]
[1755827488922,18.53242825,4267.2,4266.8,0.02]
[1755827489209,22.99195548,4267.2,4266.8,0.02]
[1755827489411,14.87242825,4266.3,4266.0,0.454817]
[1755827489610,14.87242825,4266.3,4266.2,0.3108]
[1755827489811,20.63142825,4266.3,4266.2,0.3108]
[1755827491254,20.63142825,4266.3,4266.0,0.094017]
[1755827491428,20.63142825,4266.3,4266.0,0.527817]
[1755827491948,20.63142825,4266.3,4266.2,0.3108]
[1755827492337,20.63142825,4266.3,4266.2,0.7446]
[1755827492922,5.759,4266.3,4266.2,0.7446]
[1755827496560,5.759,4266.3,4266.2,1.449611]
[1755827498666,5.759,4266.3,4266.2,1.015811]
[1755827499045,5.759,4266.3,4266.2,1.452811]
[1755827501667,5.759,4266.3,4266.2,0.705011]
[1755827502058,5.759,4266.3,4266.1,0.001]
[1755827502572,1.803,4266.3,4266.2,0.2973]
[1755827502765,5.759,4266.3,4266.2,0.2973]
[1755827503347,1.803,4266.3,4266.2,0.2973]
[1755827503669,3.956,4266.6,4266.2,0.91014791]
[1755827503837,3.956,4266.6,4266.3,2.34395143]
[1755827504037,3.956,4266.6,4266.5,0.2973]
[1755827504237,3.956,4266.6,4266.5,0.7343]
[1755827504470,1.804,4267.2,4266.6,2.34375167]
[1755827504675,3.956,4267.1,4266.7,0.437]
[1755827504846,3.956,4267.1,4267.0,0.2973]
[1755827505044,3.956,4267.1,4267.0,0.7343]
[1755827505558,3.956,4267.2,4267.0,0.7343]
[1755827505758,3.956,4267.2,4267.0,3.07784401]
[1755827505969,3.956,4267.2,4267.1,0.437]
[1755827506276,3.956,4267.2,4267.1,3.07781198]
[1755827506476,3.956,4267.2,4267.1,0.7343]
[1755827508285,3.956,4267.2,4267.1,0.2973]
[1755827509077,3.956,4267.2,4266.7,0.437]
[1755827509271,4.055,4267.2,4267.1,0.704883]
[1755827510067,3.956,4267.2,4267.1,0.704883]
[1755827510274,3.956,4267.2,4267.1,1.002183]
[1755827510481,3.956,4267.2,4267.1,1.439183]
[1755827510664,3.956,4267.2,4267.1,0.704883]
[1755827510665,4.055,4267.2,4267.1,0.704883]
[1755827511981,4.057,4267.2,4267.1,0.704883]
[1755827512186,4.057,4267.2,4266.1,0.001]
[1755827512491,4.057,4267.2,4266.3,0.437]
[1755827513062,14.87242825,4266.9,4266.1,0.001]
[1755827513263,14.87242825,4266.5,4266.4,0.704883]
[1755827513562,18.94422825,4266.5,4266.4,0.704883]
[1755827515694,18.82742825,4266.5,4266.4,0.704883]
[1755827517419,18.82842825,4266.5,4266.4,0.704883]
[1755827518637,18.88352825,4266.5,4266.4,0.704883]
[1755827518919,18.88352825,4266.5,4266.1,0.001]
[1755827519219,30.560724,4266.4,4266.1,0.001]
[1755827519417,0.0015,4266.2,4266.1,0.001]
[1755827519712,0.507124,4266.2,4266.1,0.001]
[1755827520214,30.507124,4266.2,4266.1,0.001]
[1755827520389,34.221724,4266.2,4266.1,0.001]
[1755827520591,34.167124,4266.2,4266.1,0.001]
[1755827520817,34.29879109,4266.2,4266.1,0.001]
[1755827521126,34.167124,4266.2,4266.1,0.001]
[1755827521293,34.29879259,4266.2,4266.1,0.001]
[1755827521494,34.167124,4266.2,4266.1,0.001]
[1755827522184,33.66,4266.1,4265.8,0.02]
[1755827522413,3.66,4265.7,4265.3,0.001]
[1755827522598,18.53242825,4265.4,4265.3,0.001]
[1755827522807,3.66,4265.3,4264.7,0.094049]
[1755827522989,15.64922825,4264.9,4263.8,0.021]
[1755827523314,22.60422825,4264.9,4264.1,0.094061]
[1755827523514,22.60422825,4264.9,4263.8,0.021]
[1755827523701,22.60422825,4264.9,4264.0,0.094063]
[1755827524036,53.10904373,4264.9,4264.0,0.094063]
[1755827524217,3.66,4264.8,4264.0,0.094063]
[1755827524528,3.66,4264.8,4263.8,0.021]
[1755827524529,3.66,4264.3,4263.8,0.021]
[1755827524711,39.5346,4264.3,4263.8,0.021]
[1755827524912,39.5914,4264.3,4263.8,0.021]
[1755827525118,14.87242825,4264.0,4263.8,0.021]
[1755827525316,49.60422825,4264.0,4263.8,0.021]
[1755827526014,18.94422825,4264.0,4263.8,0.021]
[1755827526207,18.82742825,4264.0,4263.8,0.021]
[1755827526402,18.94312825,4264.0,4263.8,0.021]
[1755827527103,18.94312825,4264.0,4263.9,0.7353]
[1755827527104,21.82742825,4264.0,4263.9,0.7353]
[1755827527328,21.82742825,4264.0,4263.9,0.2983]
[1755827527494,21.82742825,4264.0,4263.9,0.001]
[1755827528501,18.82742825,4264.0,4263.9,0.3093]
[1755827528694,18.82742825,4264.0,4263.9,0.7537]
[1755827530695,18.82742825,4264.0,4263.9,0.3093]
[1755827531097,18.82742825,4264.0,4263.9,0.7537]
[1755827531518,18.82742825,4264.0,4263.9,0.001]
[1755827531838,21.94422825,4264.0,4263.9,0.001]
[1755827532745,22.60422825,4264.0,4263.9,0.001]
[1755827533096,52.65982825,4264.0,4263.9,0.001]
[1755827533648,52.65982825,4264.0,4263.4,0.001]
[1755827533649,3.66,4263.9,4263.4,0.001]
[1755827533821,18.64862825,4263.5,4263.4,0.001]
[1755827534126,54.40962825,4263.5,4263.4,0.001]
[1755827534828,14.87242825,4262.9,4262.8,0.02]
[1755827535032,18.82942825,4262.9,4262.8,0.3283]
[1755827535333,14.87242825,4262.9,4262.8,0.7727]
[1755827535517,3.957,4262.9,4262.8,0.7727]
[1755827535719,1.804,4263.5,4262.8,0.7727]
[1755827536041,3.957,4263.4,4262.9,0.4444]
[1755827536340,3.957,4263.4,4263.3,0.3083]
[1755827536719,1.804,4263.5,4263.3,0.7527]
[1755827536928,3.958,4263.4,4263.3,0.3083]
[1755827537632,18.83042825,4263.4,4263.3,0.7527]
[1755827537833,18.83042825,4263.4,4263.0,0.4444]
[1755827538127,14.87242825,4263.1,4262.8,0.02]
[1755827538327,3.958,4263.0,4262.8,0.02]
[1755827538536,3.958,4263.0,4262.9,0.4444]
[1755827538730,3.958,4263.0,4262.9,0.7527]
[1755827540602,3.958,4263.0,4262.8,0.02]
[1755827541165,0.099,4262.9,4262.8,0.02]
[1755827543050,3.759,4262.9,4262.8,0.02]
[1755827543246,0.099,4262.9,4262.8,0.02]
[1755827543451,3.0,4263.0,4262.8,0.02]
[1755827543613,4.06,4262.9,4262.8,0.02]
[1755827544924,4.06,4262.9,4262.8,0.021]
[1755827545640,3.0,4263.0,4262.8,0.021]
[1755827545828,0.002,4263.4,4262.8,0.7737]
[1755827546029,3.961,4263.3,4262.9,0.4444]
[1755827546355,3.961,4263.3,4263.2,0.3083]
[1755827546529,3.961,4263.3,4263.2,0.7527]
[1755827547065,0.002,4263.4,4263.2,0.7527]
[1755827547231,3.973,4263.3,4263.2,0.3083]
[1755827547622,3.973,4263.3,4263.2,2.65394565]
[1755827547832,3.973,4263.3,4263.2,3.09834565]
[1755827548237,3.973,4263.3,4263.2,0.7527]
[1755827548821,3.973,4263.3,4263.2,3.09835584]
[1755827549725,3.976,4263.4,4263.3,5.34560082]
[1755827549949,0.002,4263.4,4263.3,6.09830082]
[1755827552129,0.002,4263.4,4263.3,3.7527]
[1755827552334,0.002,4263.4,4263.3,0.7527]
[1755827552723,0.002,4263.4,4263.3,0.3083]
[1755827552954,0.002,4263.4,4263.3,0.7527]
[1755827553768,3.976,4263.4,4263.3,0.7527]
[1755827555459,0.002,4263.4,4263.3,0.7527]
[1755827555767,0.002,4263.4,4263.3,3.09830082]
[1755827555970,0.002,4263.4,4263.3,1.29944338]
[1755827556193,0.002,4263.4,4263.3,0.7527]
[1755827556878,0.002,4263.4,4263.3,0.3083]
[1755827557172,0.002,4263.4,4263.3,0.7527]
[1755827557871,0.002,4263.4,4263.3,3.09830082]
[1755827558048,0.002,4263.4,4263.3,6.09830082]
[1755827558248,0.002,4263.4,4263.3,7.01323157]
[1755827558455,0.002,4263.4,4263.3,3.7527]
[1755827558765,0.002,4263.4,4263.3,0.7527]
[1755827559787,0.002,4263.4,4263.2,0.705332]
[1755827560089,3.98,4263.3,4263.2,1.155032]
[1755827560256,3.98,4263.3,4263.2,1.447932]
[1755827561079,3.98,4263.3,4263.2,6.79358784]
[1755827561243,3.979,4263.3,4263.2,6.79357614]
[1755827561440,3.979,4263.3,4263.2,4.447932]
[1755827561867,3.979,4263.3,4263.2,6.79358784]
[1755827562067,3.979,4263.3,4263.2,4.447932]
[1755827562485,3.979,4263.3,4263.2,0.705332]
[1755827562690,18.95042825,4263.3,4263.2,0.705332]
[1755827563187,3.979,4263.3,4263.2,0.705332]
[1755827563387,1.807,4263.4,4263.2,0.998232]
[1755827563591,3.977,4263.3,4263.2,0.998232]
[1755827564171,3.977,4263.3,4263.2,1.447932]
[1755827564849,1.807,4263.4,4263.3,2.34560082]
[1755827565079,5.785,4263.4,4263.3,3.08820082]
[1755827565690,0.002,4263.4,4263.3,3.08820082]
[1755827565875,0.002,4263.4,4263.3,6.08820082]
[1755827567083,0.002,4263.4,4263.3,7.00212146]
[1755827569087,0.002,4263.4,4263.3,6.08820082]
[1755827569892,0.63100379,4266.1,4264.7,6.00483082]
[1755827570102,1.805,4266.3,4265.6,2.34429028]
[1755827570271,4.023,4266.2,4265.6,2.34433608]
[1755827570457,4.023,4266.2,4266.1,2.63696132]
[1755827570661,0.002,4266.2,4266.1,0.7426]
[1755827570897,0.002,4266.2,4266.1,3.08666132]
[1755827571569,0.002,4266.2,4266.1,6.08666132]
[1755827572460,0.002,4266.2,4266.1,9.10880095]
[1755827575095,0.002,4266.2,4266.1,13.12780095]
[1755827575719,0.002,4266.2,4265.7,0.87924501]
[1755827576073,0.002,4266.2,4265.8,5.34422507]
[1755827576406,0.002,4266.2,4265.8,5.79392507]
[1755827576571,0.002,4266.2,4265.8,3.0]
[1755827576764,0.002,4266.2,4265.9,0.4497]
[1755827577185,0.002,4266.2,4265.7,0.87924501]
[1755827577475,0.002,4266.2,4265.7,3.87924501]
[1755827578090,0.002,4266.2,4265.7,4.32894501]
[1755827578306,0.002,4266.2,4265.8,0.4497]
[1755827579309,0.002,4266.2,4265.9,0.4497]
[1755827580282,0.002,4266.2,4265.7,3.17430801]
[1755827580476,0.002,4266.2,4266.1,5.63696132]
[1755827580979,0.002,4266.2,4266.1,6.08666132]
[1755827581179,0.002,4266.2,4266.1,6.18063932]
[1755827581413,0.002,4266.2,4266.1,10.19763932]
[1755827581724,0.002,4266.2,4266.1,10.85763932]
[1755827581878,0.002,4266.2,4266.1,13.21977895]
[1755827584120,0.002,4266.2,4266.1,9.20277895]
[1755827584729,0.002,4266.2,4266.1,10.85463932]
[1755827587318,0.002,4266.2,4266.1,6.84063932]
[1755827587617,1e-08,4266.2,4266.1,16.64256832]
[1755827587917,1e-08,4266.2,4266.1,15.34366332]
[1755827588118,1e-08,4266.2,4266.1,13.33037895]
[1755827588326,1e-08,4266.2,4266.1,13.21977895]
[1755827588778,1e-08,4266.2,4266.1,6.131557]
[1755827589020,0.19460001,4266.2,4266.1,0.093978]
[1755827589318,0.15200001,4266.2,4266.1,0.093978]
[1755827592098,1e-08,4266.2,4266.1,0.093978]
[1755827593305,1e-08,4266.2,4266.1,2.43803932]
[1755827593519,1e-08,4266.2,4266.1,6.39903932]
[1755827593700,1e-08,4266.2,4266.1,7.35066196]
[1755827594084,1e-08,4266.2,4266.1,6.57626196]
[1755827595318,1e-08,4266.2,4266.1,6.09803932]
[1755827595616,1e-08,4266.2,4266.1,6.87243932]
[1755827596823,1e-08,4266.2,4266.1,3.093978]
[1755827596987,0.09440001,4266.2,4266.1,3.093978]
[1755827597193,0.09440001,4266.2,4266.1,0.093978]